bitfinex-derivatives/quotes_SOLF0:USTF0_20241101
["timestamp","ask_amount","ask_price","bid_price","bid_amount"]
[1730428642070,14.36032652,167.45,167.35,22.61273831]
[1730428642267,14.36032652,167.45,167.35,19.59082652]
[1730428642965,2.9902,167.44,167.38,2.9912]
[1730428644067,20.03632652,167.48,167.43,2.9903]
[1730428644367,2.6865,167.48,167.38,14.36032652]
[1730428644574,2.6865,167.48,167.4,3.88]
[1730428644767,2.9897,167.47,167.41,2.9905]
[1730428645372,17.04682652,167.48,167.41,2.9905]
[1730428645675,2.9898,167.46,167.41,2.9905]
[1730428645877,17.04682652,167.48,167.4,3.88]
[1730428646177,2.9898,167.46,167.4,3.88]
[1730428646871,2.9896,167.47,167.4,3.88]
[1730428647372,18.69412652,167.5,167.4,18.24032652]
[1730428648269,15.70502652,167.5,167.4,18.24032652]
[1730428648571,2.9893,167.49,167.43,2.9901]
[1730428654174,2.9897,167.47,167.41,2.9906]
[1730428655372,2.9901,167.45,167.4,3.88]
[1730428655577,15.64902652,167.48,167.4,3.88]
[1730428656078,2.9899,167.46,167.4,6.8708]
[1730428659078,15.64902652,167.48,167.4,3.88]
[1730428659279,2.9896,167.47,167.4,3.88]
[1730428659777,15.64902652,167.48,167.4,3.88]
[1730428659976,15.64902652,167.48,167.39,2.9909]
[1730428659977,2.9901,167.45,167.39,2.9909]
[1730428661976,2.9903,167.44,167.38,2.9912]
[1730428662679,2.9904,167.43,167.37,6.8513]
[1730428662982,2.9904,167.43,167.37,3.86]
[1730428663377,1.3317,167.47,167.37,3.86]
[1730428663576,1.3317,167.47,167.38,2.991]
[1730428663577,2.9902,167.44,167.38,2.991]
[1730428668584,12.18604679,167.44,167.38,12.18684679]
[1730428668776,9.19584679,167.44,167.38,9.19584679]
[1730428668982,9.19584679,167.44,167.4,2.9908]
[1730428669286,9.19584679,167.46,167.41,9.19584679]
[1730428670483,12.18564679,167.46,167.41,2.9906]
[1730428671284,9.19584679,167.46,167.41,2.9907]
[1730428671487,9.19584679,167.46,167.41,12.18654679]
[1730428672384,12.18564679,167.46,167.41,12.18654679]
[1730428673280,9.19584679,167.46,167.41,12.18654679]
[1730428674288,12.18564679,167.46,167.41,9.19584679]
[1730428674491,1.2887,167.48,167.42,9.19584679]
[1730428674678,9.19584679,167.49,167.42,13.05584679]
[1730428674883,9.19584679,167.49,167.44,2.99]
[1730428676489,9.19584679,167.49,167.45,2.9898]
[1730428676683,9.19584679,167.5,167.45,2.9898]
[1730428680289,9.19584679,167.5,167.44,9.19584679]
[1730428680290,9.19584679,167.53,167.47,9.19584679]
[1730428680690,9.19584679,167.53,167.47,13.05584679]
[1730428681298,9.19584679,167.53,167.49,2.9892]
[1730428681594,9.19584679,167.58,167.52,9.19584679]
[1730428681794,9.19584679,167.58,167.53,2.9885]
[1730428681995,9.19584679,167.57,167.53,2.9885]
[1730428682196,9.19584679,167.57,167.52,9.19584679]
[1730428682595,9.19584679,167.57,167.53,2.9885]
[1730428682792,9.19584679,167.57,167.52,9.19584679]
[1730428683194,9.19584679,167.57,167.47,3.86]
[1730428683195,9.19584679,167.57,167.5,9.19584679]
[1730428683894,2.9881,167.56,167.5,9.19584679]
[1730428684500,2.9881,167.56,167.5,12.18484679]
[1730428685102,12.18374679,167.57,167.51,12.18454679]
[1730428685399,9.19584679,167.58,167.51,9.19584679]
[1730428685795,12.18364679,167.58,167.52,2.9886]
[1730428685996,9.19584679,167.58,167.51,9.19584679]
[1730428687302,2.9878,167.57,167.51,12.18474679]
[1730428689697,2.9883,167.55,167.5,9.19584679]
[1730428689901,2.9883,167.55,167.51,3.86]
[1730428690501,2.9884,167.54,167.5,9.19584679]
[1730428692200,9.19584679,167.55,167.5,9.19584679]
[1730428692503,1.324,167.61,167.51,9.19584679]
[1730428692504,9.19584679,167.56,167.51,9.19584679]
[1730428693405,9.19584679,167.56,167.51,12.18464679]
[1730428695607,12.18384679,167.56,167.51,9.19584679]
[1730428697711,9.19584679,167.59,167.53,9.19584679]
[1730428697907,10.51984679,167.61,167.54,9.19584679]
[1730428698114,10.51984679,167.61,167.54,13.05584679]
[1730428698506,13.50704679,167.61,167.55,2.9881]
[1730428699014,10.51984679,167.61,167.55,2.9881]
[1730428699208,2.9873,167.6,167.55,2.9881]
[1730428700110,12.18294679,167.61,167.56,12.18384679]
[1730428701108,12.18294679,167.61,167.56,9.19584679]
[1730428701316,2.9873,167.6,167.56,9.19584679]
[1730428701519,2.9873,167.6,167.55,2.9881]
[1730428701703,2.9873,167.6,167.54,13.05584679]
[1730428701908,2.9873,167.6,167.54,16.04414679]
[1730428703009,9.19584679,167.58,167.54,3.86]
[1730428705913,2.9875,167.59,167.54,3.86]
[1730428706316,12.18314679,167.6,167.55,12.18404679]
[1730428706510,2.9873,167.6,167.55,12.18404679]
[1730428707422,12.18314679,167.61,167.55,12.18404679]
[1730428707921,12.18314679,167.61,167.55,9.19584679]
[1730428708216,12.18314679,167.61,167.56,2.988]
[1730428710520,9.19584679,167.61,167.57,2.9878]
[1730428710713,9.19584679,167.61,167.56,9.19584679]
[1730428711115,9.19584679,167.61,167.56,12.18384679]
[1730428711919,9.19584679,167.63,167.56,9.19584679]
[1730428712222,9.19584679,167.64,167.58,9.19584679]
[1730428712621,12.18254679,167.64,167.58,12.18334679]
[1730428713116,12.18254679,167.64,167.58,9.19584679]
[1730428713319,9.19584679,167.64,167.58,9.19584679]
[1730428713517,9.19584679,167.64,167.54,3.86]
[1730428713518,9.19584679,167.63,167.56,9.19584679]
[1730428713715,2.9875,167.59,167.55,13.05584679]
[1730428713921,2.9875,167.59,167.53,9.19584679]
[1730428713922,9.19584679,167.59,167.53,9.19584679]
[1730428714220,9.19584679,167.59,167.5,3.9285]
[1730428714221,9.19584679,167.56,167.52,3.86]
[1730428714612,9.19584679,167.56,167.5,15.64384679]
[1730428716326,12.18404679,167.56,167.5,16.04484679]
[1730428716619,12.18404679,167.56,167.5,6.849]
[1730428716620,2.9882,167.56,167.5,6.849]
[1730428717524,2.9883,167.55,167.49,2.9892]
[1730428718527,14.34732653,167.57,167.46,2.7019]
[1730428718827,14.34732653,167.54,167.45,3.86]
[1730428719020,14.34732653,167.54,167.43,14.34732653]
[1730428719218,2.9889,167.52,167.45,2.9898]
[1730428719419,14.34732653,167.54,167.44,3.86]
[1730428720335,2.9887,167.53,167.46,2.9898]
[1730428720727,14.34732653,167.54,167.46,2.9898]
[1730428722222,2.9887,167.52,167.46,2.9898]
[1730428722724,14.34732653,167.54,167.44,3.86]
[1730428722930,2.9886,167.53,167.44,3.86]
[1730428723826,2.9887,167.52,167.46,2.9896]
[1730428725231,2.9886,167.53,167.47,2.9896]
[1730428725439,14.34732653,167.54,167.47,2.9896]
[1730428726228,2.9887,167.52,167.47,2.9896]
[1730428727139,14.34732653,167.54,167.44,6.5357]
[1730428727329,1.3143,167.56,167.45,14.34732653]
[1730428727735,2.9882,167.55,167.45,14.34732653]
[1730428727936,1.3143,167.56,167.45,14.34732653]
[1730428728234,1.3143,167.56,167.45,15.59452653]
[1730428728434,1.2958,167.58,167.48,14.34732653]
[1730428728938,2.9878,167.57,167.51,2.9888]
[1730428729937,2.9882,167.55,167.5,2.9891]
[1730428730535,2.9882,167.55,167.49,6.8292]
[1730428731238,14.34732653,167.57,167.49,3.84]
[1730428731547,14.34732653,167.55,167.47,2.9895]
[1730428732040,2.9889,167.52,167.46,2.9898]
[1730428732738,14.34732653,167.55,167.44,6.5157]
[1730428732739,2.9885,167.54,167.44,6.5157]
[1730428732940,14.34732653,167.55,167.44,9.47983203]
[1730428733336,2.9885,167.54,167.48,2.9894]
[1730428733730,14.34732653,167.55,167.44,9.47983203]
[1730428735339,2.9886,167.53,167.47,2.9896]
[1730428736240,14.34732653,167.55,167.44,9.47983203]
[1730428736539,14.34732653,167.57,167.46,14.34732653]
[1730428737441,2.988,167.56,167.5,2.989]
[1730428738138,14.34732653,167.57,167.46,14.34732653]
[1730428738340,2.9879,167.57,167.51,2.9887]
[1730428738549,1.2958,167.58,167.49,3.84]
[1730428739246,4.2835,167.58,167.49,3.84]
[1730428739944,4.2835,167.58,167.52,2.9886]
[1730428740540,17.06052653,167.59,167.54,2.9882]
[1730428740844,1.354,167.59,167.51,14.34732653]
[1730428741341,1.354,167.59,167.55,2.9882]
[1730428741643,1.354,167.59,167.54,2.9883]
[1730428741851,15.70132653,167.59,167.5,1.3328]
[1730428742450,2.9877,167.58,167.5,1.3328]
[1730428742749,1.354,167.59,167.5,1.3328]
[1730428743143,2.9875,167.59,167.53,2.9885]
[1730428744444,14.34732653,167.61,167.5,1.3328]
[1730428744642,2.9882,167.55,167.49,6.8292]
[1730428746548,2.9882,167.55,167.5,2.9891]
[1730428748744,1.2856,167.57,167.49,3.84]
[1730428748745,2.9876,167.59,167.51,14.34732653]
[1730428748950,3.9301,167.63,167.53,14.34732653]
[1730428749259,3.9301,167.63,167.54,3.82]
[1730428749651,2.987,167.62,167.56,2.9879]
[1730428750052,3.9301,167.63,167.54,3.82]
[1730428750444,14.34732653,167.68,167.56,14.34732653]
[1730428750746,22.3456969,167.68,167.56,14.34732653]
[1730428751053,2.9864,167.65,167.59,2.9873]
[1730428751252,2.9864,167.65,167.59,6.8073]
[1730428751447,2.9873,167.6,167.55,2.9881]
[1730428751650,14.34732653,167.62,167.53,3.82]
[1730428752845,2.5943,167.64,167.54,3.04084569]
[1730428753247,2.5943,167.64,167.53,18.16732653]
[1730428753248,2.9864,167.65,167.6,2.9873]
[1730428753646,2.9864,167.65,167.58,18.16732653]
[1730428755458,2.9864,167.65,167.59,2.9874]
[1730428755952,2.9864,167.65,167.58,18.16732653]
[1730428755953,1.3596,167.69,167.6,14.34732653]
[1730428756158,2.9862,167.67,167.61,2.9871]
[1730428756452,2.9862,167.67,167.6,14.34732653]
[1730428756756,14.34732653,167.74,167.63,14.34732653]
[1730428757058,22.33218529,167.74,167.64,3.82]
[1730428757453,2.9855,167.71,167.65,2.9863]
[1730428759655,2.6272,167.75,167.65,14.34732653]
[1730428759858,2.6272,167.75,167.64,3.82]
[1730428760552,2.9853,167.71,167.66,2.9861]
[1730428760956,14.34732653,167.72,167.61,14.34732653]
[1730428761152,14.34732653,167.72,167.62,3.82]
[1730428761359,2.9855,167.7,167.65,2.9863]
[1730428761860,2.9855,167.7,167.62,3.82]
[1730428761861,15.66192653,167.74,167.63,14.34732653]
[1730428762055,2.9851,167.73,167.67,2.986]
[1730428762249,15.66192653,167.74,167.67,2.986]
[1730428762459,15.66192653,167.74,167.63,14.34732653]
[1730428762759,2.9855,167.71,167.66,2.9862]
[1730428762953,14.34732653,167.72,167.62,3.82]
[1730428763354,14.34732653,167.72,167.64,2.9865]
[1730428763355,2.9857,167.69,167.64,2.9865]
[1730428763551,2.9857,167.69,167.62,3.82]
[1730428764349,14.34732653,167.72,167.63,2.9867]
[1730428764549,2.9859,167.68,167.63,2.9867]
[1730428764749,2.9859,167.68,167.63,2.91327076]
[1730428764957,2.9857,167.69,167.63,2.91327076]
[1730428766960,14.34732653,167.72,167.62,3.82]
[1730428766961,2.9855,167.7,167.64,2.9865]
[1730428768061,14.34732653,167.66,167.53,15.84129052]
[1730428768362,14.34732653,167.64,167.54,3.82]
[1730428768761,2.9874,167.6,167.54,3.82]
[1730428769161,15.59522653,167.64,167.54,3.82]
[1730428769359,15.59522653,167.64,167.56,2.9879]
[1730428770257,2.9869,167.62,167.56,2.9879]
[1730428771567,2.9868,167.63,167.57,2.9878]
[1730428771967,2.9868,167.63,167.54,3.82]
[1730428772270,2.9868,167.63,167.57,2.9878]
[1730428773765,15.59522653,167.64,167.54,6.3398]
[1730428773766,2.6856,167.65,167.55,14.34732653]
[1730428773962,14.34732653,167.67,167.59,2.9873]
[1730428773963,2.9864,167.66,167.59,2.9873]
[1730428774163,2.9864,167.66,167.59,6.8073]
[1730428774468,14.34732653,167.67,167.59,6.8073]
[1730428774769,2.9864,167.65,167.59,6.8073]
[1730428776867,17.33342653,167.67,167.61,2.9871]
[1730428777067,14.34732653,167.67,167.59,3.82]
[1730428777575,2.9864,167.66,167.6,2.9872]
[1730428777769,2.6628,167.71,167.6,14.34732653]
[1730428778076,2.6628,167.71,167.62,14.34732653]
[1730428778468,2.6628,167.71,167.65,2.9862]
[1730428778673,1.35,167.71,167.64,3.82]
[1730428779469,1.35,167.71,167.66,2.9862]
[1730428779973,1.35,167.71,167.64,3.82]
[1730428781372,2.9858,167.69,167.64,6.8066]
[1730428782875,1.3044,167.76,167.67,14.34732653]
[1730428783578,4.289,167.76,167.67,14.34732653]
[1730428783975,1.3044,167.76,167.67,14.34732653]
[1730428784679,2.9849,167.74,167.69,2.9855]
[1730428784975,1.3044,167.76,167.69,3.8]
[1730428786379,1.3044,167.76,167.7,2.9854]
[1730428787279,2.9848,167.74,167.69,6.7857]
[1730428793977,2.9848,167.74,167.69,3.8]
[1730428794291,1.2988,167.78,167.7,2.9855]
[1730428795187,2.9845,167.76,167.7,2.9855]
[1730428795377,1.2988,167.78,167.7,2.9855]
[1730428795780,2.9848,167.74,167.7,2.9855]
[1730428796081,14.34732653,167.77,167.68,6.7857]
[1730428796281,2.9854,167.71,167.64,14.34732653]
[1730428796490,14.34732653,167.77,167.65,3.8]
[1730428796689,14.34732653,167.75,167.65,3.8]
[1730428796890,1.3408,167.74,167.65,3.8]
[1730428797587,1.3408,167.74,167.65,6.7864]
[1730428798390,2.9856,167.7,167.65,6.7864]
[1730428799892,2.9851,167.72,167.65,3.8]
[1730428800885,2.9851,167.72,167.67,2.986]
[1730428801288,2.985,167.73,167.68,2.9858]
[1730428801890,2.9852,167.72,167.67,2.986]
[1730428802290,14.34732653,167.75,167.65,3.8]
[1730428802592,2.9855,167.71,167.66,2.9862]
[1730428803290,2.9856,167.7,167.65,6.7863]
[1730428803593,14.34732653,167.73,167.62,14.34732653]
[1730428803893,2.5509,167.72,167.63,3.8]
[1730428804191,2.5509,167.72,167.63,6.7866]
[1730428804894,2.5509,167.72,167.64,2.9865]
[1730428804895,2.9858,167.69,167.64,2.9865]
[1730428805185,2.9858,167.69,167.63,3.8]
[1730428805491,2.9851,167.72,167.65,14.34732653]
[1730428807188,2.9851,167.72,167.66,2.9861]
[1730428809292,2.9848,167.74,167.68,2.9858]
[1730428809891,2.9851,167.73,167.68,2.9858]
[1730428812092,2.9855,167.7,167.65,17.33372653]
[1730428812291,2.9855,167.7,167.65,6.7664]
[1730428812497,2.9855,167.7,167.65,2.9864]
[1730428813598,2.9857,167.69,167.64,3.78]
[1730428814391,2.986,167.68,167.64,3.78]
[1730428814701,14.34732653,167.72,167.64,3.78]
[1730428814702,1.2814,167.71,167.64,3.78]
[1730428815094,2.9859,167.68,167.64,3.78]
[1730428820419,2.9859,167.68,167.64,12.95829485]
[1730428821114,10.45969485,167.71,167.65,9.17829485]
[1730428821414,1.2924,167.77,167.67,9.17829485]
[1730428821415,9.17829485,167.73,167.67,9.17829485]
[1730428821619,13.42763772,167.76,167.63,9.17829485]
[1730428821817,9.17829485,167.64,167.55,9.17829485]
[1730428822019,11.64769743,167.75,167.53,9.17829485]
[1730428822020,9.17829485,167.6,167.53,9.17829485]
[1730428822317,9.17829485,167.6,167.54,2.9883]
[1730428822513,17.00634902,167.63,167.54,2.9883]
[1730428823015,2.9871,167.62,167.52,14.35694902]
[1730428823319,2.9871,167.62,167.55,2.988]
[1730428824023,20.80634902,167.63,167.55,2.988]
[1730428824221,2.9872,167.61,167.55,2.988]
[1730428826120,1.3349,167.65,167.56,14.35694902]
[1730428826828,2.9867,167.64,167.58,2.9875]
[1730428827022,1.3349,167.65,167.56,14.35694902]
[1730428827418,4.3214,167.65,167.59,2.9874]
[1730428827620,2.9865,167.65,167.59,2.9874]
[1730428827820,14.35694902,167.6,167.44,5.87466232]
[1730428828024,14.35694902,167.54,167.47,2.9895]
[1730428828724,14.35694902,167.54,167.43,2.9511182]
[1730428828928,2.9887,167.52,167.46,2.9897]
[1730428831526,2.9887,167.52,167.4,2.672]
[1730428831527,14.35694902,167.52,167.41,9.66497764]
[1730428831729,14.35694902,167.52,167.42,1.49524513]
[1730428831918,14.35694902,167.52,167.41,3.8]
[1730428832254,2.9895,167.48,167.41,6.7906]
[1730428832432,2.9895,167.48,167.41,2.9906]
[1730428832732,14.35694902,167.49,167.4,17.02894902]
[1730428833624,14.35694902,167.47,167.4,2.672]
[1730428833827,14.35694902,167.47,167.36,5.1589]
[1730428834624,2.9901,167.45,167.38,2.9912]
[1730428836134,2.9902,167.44,167.38,2.9912]
[1730428836329,14.35694902,167.47,167.38,2.9912]
[1730428837231,2.9901,167.44,167.38,2.9912]
[1730428837434,14.35694902,167.47,167.39,2.991]
[1730428838230,2.9899,167.46,167.39,2.991]
[1730428839234,14.35694902,167.47,167.39,2.991]
[1730428839433,2.9901,167.45,167.39,2.991]
[1730428844332,17.34704902,167.45,167.39,2.991]
[1730428845437,14.35694902,167.45,167.36,6.4825]
[1730428845740,14.35694902,167.48,167.41,2.9906]
[1730428847144,2.9898,167.47,167.41,2.9906]
[1730428847837,14.35694902,167.48,167.41,2.9906]
[1730428848043,2.9899,167.46,167.41,2.9906]
[1730428848737,2.9902,167.44,167.39,2.991]
[1730428849339,14.35694902,167.45,167.36,1.3589]
[1730428849532,17.34734902,167.43,167.38,2.9912]
[1730428849938,14.35694902,167.43,167.36,1.3589]
[1730428850140,2.9907,167.41,167.36,2.9915]
[1730428851142,2.9905,167.42,167.36,2.9915]
[1730428851343,14.35694902,167.43,167.36,2.9915]
[1730428851941,15.71404902,167.43,167.36,2.9915]
[1730428852344,2.9907,167.41,167.36,2.9915]
[1730428853145,2.9914,167.37,167.31,2.9924]
[1730428854438,14.35694902,167.38,167.28,2.5535]
[1730428854644,2.9916,167.36,167.3,2.9926]
[1730428855950,2.9914,167.37,167.31,2.9924]
[1730428858246,2.9909,167.4,167.34,2.9919]
[1730428858854,2.9911,167.39,167.32,2.9921]
[1730428859148,18.13694902,167.41,167.29,18.13694902]
[1730428859541,21.12774902,167.41,167.34,2.9917]
[1730428859749,21.12774902,167.41,167.29,18.13694902]
[1730428860346,2.9909,167.4,167.29,18.13694902]
[1730428861552,2.9911,167.39,167.29,18.13694902]
[1730428862052,18.13694902,167.41,167.34,2.9919]
[1730428862254,2.9909,167.4,167.34,2.9919]
[1730428863145,18.13694902,167.41,167.29,18.13694902]
[1730428863347,2.9914,167.37,167.32,2.9921]
[1730428863855,2.9914,167.37,167.29,3.78]
[1730428864051,2.9914,167.37,167.31,2.9924]
[1730428864451,9.19455648,167.36,167.31,2.9924]
[1730428865562,9.19455648,167.39,167.33,9.19455648]
[1730428865757,9.19455648,167.4,167.34,9.19455648]
[1730428866245,9.19455648,167.4,167.36,2.9914]
[1730428866953,9.19455648,167.39,167.35,2.9917]
[1730428868360,9.19455648,167.4,167.34,9.19455648]
[1730428868548,22.04208537,167.43,167.31,14.37478537]
[1730428868747,22.04208537,167.43,167.37,2.9912]
[1730428868952,25.03238537,167.43,167.37,2.9912]
[1730428870552,25.03238537,167.43,167.38,2.9911]
[1730428871251,3.8873,167.43,167.38,2.9911]
[1730428873261,3.8873,167.43,167.39,2.9909]
[1730428873262,1.3571,167.43,167.39,2.9909]
[1730428873456,21.12478537,167.45,167.39,2.9909]
[1730428874760,17.36478537,167.45,167.39,2.9909]
[1730428876662,3.9522,167.51,167.41,2.9905]
[1730428876663,3.76,167.47,167.41,2.9905]
[1730428878260,2.9898,167.46,167.41,2.9905]
[1730428878574,18.32698537,167.51,167.45,2.9899]
[1730428878754,18.32698537,167.51,167.41,3.76]
[1730428878953,14.37478537,167.48,167.41,6.7506]
[1730428879158,14.37478537,167.48,167.41,3.76]
[1730428879362,3.9522,167.51,167.41,3.76]
[1730428879363,2.9901,167.45,167.41,3.76]
[1730428879560,2.9901,167.45,167.38,2.9912]
[1730428879759,2.9901,167.45,167.37,3.76]
[1730428880570,14.37478537,167.44,167.3,14.37478537]
[1730428880755,14.37478537,167.41,167.28,17.04828537]
[1730428881264,2.991,167.4,167.28,17.04828537]
[1730428881465,2.991,167.4,167.28,20.09478369]
[1730428881662,2.9914,167.37,167.3,2.9925]
[1730428881965,2.9914,167.37,167.28,9.47999832]
[1730428882161,2.9912,167.38,167.32,2.9922]
[1730428882760,14.37478537,167.41,167.32,2.9922]
[1730428882968,2.9911,167.39,167.32,2.9922]
[1730428884253,17.36588537,167.39,167.32,2.9922]
[1730428886469,17.36588537,167.39,167.33,2.9921]
[1730428886667,14.37478537,167.39,167.3,3.76]
[1730428886969,14.37478537,167.39,167.33,2.992]
[1730428887759,17.36548537,167.41,167.35,2.9917]
[1730428887955,17.36548537,167.41,167.3,3.76]
[1730428888272,17.36548537,167.41,167.3,18.13478537]
[1730428888462,14.37478537,167.41,167.3,18.13478537]
[1730428888859,14.37478537,167.41,167.3,14.37478537]
[1730428889160,17.36588537,167.39,167.29,3.76]
[1730428890463,9.19334721,167.36,167.33,2.9919]
[1730428890659,9.19334721,167.36,167.29,3.76]
[1730428890660,9.19334721,167.38,167.32,9.19334721]
[1730428890867,9.19334721,167.4,167.34,9.19334721]
[1730428891063,9.19334721,167.4,167.34,12.95334721]
[1730428891667,9.19334721,167.4,167.36,2.9915]
[1730428892469,17.35083821,167.42,167.36,2.9915]
[1730428895180,14.36023821,167.42,167.37,2.9913]
[1730428895678,14.36023821,167.42,167.34,3.76]
[1730428895971,17.06703821,167.44,167.4,2.9908]
[1730428897071,14.36023821,167.42,167.34,3.76]
[1730428898269,2.9909,167.4,167.34,3.76]
[1730428899265,2.9909,167.4,167.35,2.9917]
[1730428900379,2.9911,167.39,167.33,2.9919]
[1730428900572,14.36023821,167.42,167.32,3.76]
[1730428900772,2.9909,167.4,167.34,2.9918]
[1730428901171,14.36023821,167.42,167.32,3.76]
[1730428901671,2.9911,167.39,167.33,2.9919]
[1730428902172,14.36023821,167.42,167.32,3.76]
[1730428902374,14.36023821,167.42,167.37,2.9912]
[1730428903081,17.35073821,167.42,167.37,2.9912]
[1730428903775,14.36023821,167.42,167.37,2.9912]
[1730428903980,2.9907,167.41,167.37,2.9912]
[1730428904172,14.36023821,167.42,167.37,2.9912]
[1730428905374,17.35073821,167.42,167.37,2.9912]
[1730428906270,14.36023821,167.42,167.38,2.9911]
[1730428907777,2.7068,167.44,167.34,14.36023821]
[1730428907977,2.7068,167.44,167.35,1.49600942]
[1730428908283,2.7068,167.44,167.36,1.49600942]
[1730428908582,2.7068,167.44,167.35,2.6674]
[1730428908785,2.7068,167.44,167.36,1.49596571]
[1730428908969,2.7068,167.44,167.35,2.6674]
[1730428909172,2.7068,167.44,167.36,1.49594614]
[1730428909481,2.7068,167.44,167.35,2.6674]
[1730428909682,2.7068,167.44,167.36,1.49599381]
[1730428909877,2.7068,167.44,167.35,2.6674]
[1730428909878,5.6969,167.44,167.35,2.6674]
[1730428910072,5.6969,167.44,167.36,1.49601329]
[1730428910276,5.6969,167.44,167.35,2.6674]
[1730428910479,5.6969,167.44,167.38,2.991]
[1730428910978,17.35063821,167.43,167.38,2.991]
[1730428912583,9.19757999,167.41,167.38,2.991]
[1730428914789,9.19757999,167.41,167.35,11.86497999]
[1730428915090,9.19757999,167.41,167.36,1.49598789]
[1730428915284,9.19757999,167.41,167.35,11.86497999]
[1730428915483,9.19757999,167.41,167.36,1.49598916]
[1730428915683,9.19757999,167.41,167.35,11.86497999]
[1730428915987,9.19757999,167.41,167.36,1.49598916]
[1730428916190,9.19757999,167.41,167.35,11.86497999]
[1730428916588,9.19757999,167.41,167.38,2.991]
[1730428918182,9.19757999,167.41,167.35,11.86497999]
[1730428918379,9.19757999,167.45,167.39,9.19757999]
[1730428918691,9.19757999,167.46,167.4,9.19757999]
[1730428919382,9.19757999,167.44,167.42,2.9904]
[1730428920693,9.19757999,167.43,167.38,3.76]
[1730428920887,9.19757999,167.41,167.38,3.76]
[1730428921679,9.19757999,167.4,167.33,3.76]
[1730428921886,9.19757999,167.38,167.32,9.19757999]
[1730428922083,9.19757999,167.38,167.34,1.49615563]
[1730428922286,9.19757999,167.38,167.33,5.25615563]
[1730428922487,9.19757999,167.38,167.34,1.49615563]
[1730428922687,9.19757999,167.38,167.35,1.49615563]
[1730428922888,9.19757999,167.38,167.34,2.9918]
[1730428925196,9.19757999,167.38,167.35,1.49619439]
[1730428925392,9.19757999,167.38,167.34,2.9918]
[1730428925888,9.19757999,167.38,167.32,9.19757999]
[1730428926094,9.19757999,167.38,167.33,1.4962628]
[1730428926294,9.19757999,167.38,167.34,1.4962628]
[1730428926494,9.19757999,167.38,167.32,9.19757999]
[1730428926699,9.19757999,167.38,167.33,1.49625919]
[1730428926897,9.19757999,167.38,167.32,9.19757999]
[1730428926898,9.19757999,167.38,167.34,1.49625919]
[1730428927194,9.19757999,167.38,167.32,9.19757999]
[1730428927396,9.19757999,167.41,167.35,9.19757999]
[1730428927598,9.19757999,167.41,167.36,1.49624639]
[1730428927800,9.19757999,167.41,167.35,9.19757999]
[1730428928495,9.19757999,167.38,167.36,1.4961129]
[1730428928799,9.19757999,167.38,167.32,9.19757999]
[1730428928999,9.19757999,167.38,167.33,1.49615233]
[1730428929196,9.19757999,167.38,167.34,1.49615233]
[1730428929496,9.19757999,167.38,167.35,1.49615233]
[1730428929698,9.19757999,167.4,167.36,2.9915]
[1730428929900,2.9907,167.41,167.31,3.76]
[1730428929901,9.19757999,167.41,167.35,9.19757999]
[1730428930098,9.19757999,167.41,167.36,1.49606503]
[1730428930300,9.19757999,167.41,167.37,1.49606503]
[1730428930504,9.19757999,167.41,167.35,9.19757999]
[1730428930690,9.19757999,167.41,167.36,1.49607018]
[1730428930896,9.19757999,167.41,167.37,1.49607018]
[1730428931197,9.19757999,167.41,167.35,9.19757999]
[1730428931401,9.19757999,167.41,167.37,2.9913]
[1730428933116,9.19757999,167.43,167.38,1.4958739]
[1730428933290,9.19757999,167.46,167.42,2.9905]
[1730428933487,9.19757999,167.46,167.4,9.19757999]
[1730428934011,9.19757999,167.46,167.41,2.9905]
[1730428934193,9.19757999,167.46,167.4,9.19757999]
[1730428934900,9.19757999,167.45,167.4,9.19757999]
[1730428935101,9.19757999,167.45,167.41,2.9906]
[1730428936795,9.19757999,167.46,167.4,9.19757999]
[1730428937102,9.19757999,167.51,167.44,9.19757999]
[1730428937503,9.19757999,167.51,167.47,2.9894]
[1730428938699,9.19757999,167.49,167.43,9.19757999]
[1730428938900,9.19757999,167.49,167.45,2.9899]
[1730428941106,9.19757999,167.51,167.46,2.9897]
[1730428941303,9.19757999,167.52,167.46,9.19757999]